Cogmind - Beta 17 @@@ ROGUE MODE // 2026.08.19 @ 18:59:50 Player: HorseLips Result: Destroyed by JT-Y6X(R) with Subdweller Laser Performance ------------- Evolutions (0) 0 Regions Visited (2) 400 Robots Destroyed (18) 90 Value Destroyed (620) 620 Prototype IDs (0) 0 Alien Tech Used (0) 0 Bonus (0) 0 TOTAL SCORE: 1110 Bonus ------- None Cogmind --------- Core Integrity 0/250 Matter 280/300 Energy 250/250 System Corruption 0% Temperature Cool (6) Movement Rolling (100) Location -10/Subcaves Parts ------- > --- POWER (1) -------- Ion Engine > --- PROPULSION (2) --- Compact Wheel Compact Wheel > --- UTILITY (2) ------ Heat Sink Small Storage Unit > --- WEAPON (2) ------- Hammer > --- INVENTORY (8) ---- Light Ion Engine EM Pulse Gun Hammer Peak State ------------ > --- POWER ------------ Ion Engine > --- PROPULSION ------- Light Treads Aluminum Leg > --- UTILITY ---------- Heat Sink Small Storage Unit > --- WEAPON ----------- Assault Rifle Assault Rifle > --- INVENTORY -------- Light Ion Engine Aluminum Leg Compact Wheel Compact Wheel EM Pulse Gun [Rating: 7] Favorites ----------- Power Ion Engine Engine Ion Engine Propulsion Aluminum Leg Treads Light Treads Leg Aluminum Leg Wheel Compact Wheel Utility Small Storage Unit Device Heat Sink Storage Small Storage Unit Weapon Assault Rifle Ballistic Gun Assault Rifle Impact Weapon Hammer Build | -11 -10 -10 ------- Run | Yrd Mat Sub Slots Evolved . | . . . Power . | . . . Propulsion . | . . . Utility . | . . . Weapon . | . . . Parts Attached 14 | 6 6 2 Power 2 | 1 1 . Engine 2 | 1 1 . Core . | . . . Reactor . | . . . Propulsion 6 | 2 2 2 Treads 2 | 2 . . Leg 2 | . 2 . Wheel 2 | . . 2 Hover . | . . . Flight . | . . . Utility 2 | 1 1 . Device 1 | . 1 . Storage 1 | 1 . . Processor . | . . . Hackware . | . . . Protection . | . . . Artifact . | . . . Weapon 4 | 2 2 . Energy Gun . | . . . Energy Cannon . | . . . Ballistic Gun 2 | 2 . . Ballistic Cannon . | . . . Launcher . | . . . Special Weapon . | . . . Impact Weapon 2 | . 2 . Slashing Weapon . | . . . Piercing Weapon . | . . . Special Melee Weapon . | . . . Unidentified Prototypes . | . . . Parts Lost 6 | . 6 . Power 1 | . 1 . Propulsion 3 | . 3 . Utility . | . . . Weapon 2 | . 2 . Highest Loss Streak 2 | . 2 . To Critical Strikes . | . . . Average Backups 5 | 5 6 3 Power . | . 1 1 Propulsion 2 | 2 3 . Utility . | . . . Weapon 2 | 1 2 2 Tool/Special . | . . . Unused Backups 2 | . . 2 Power 1 | . . 1 Propulsion . | . . . Utility . | . . . Weapon 1 | . . 1 Tool/Special . | . . . Average Slot Usage (%) 90 | . 91 83 Engine 13 | . 13 14 Treads 6 | . 7 . Leg 15 | . 18 . Wheel 4 | . . 26 Device 10 | . 10 14 Storage 14 | . 14 14 Ballistic Gun 18 | . 22 . Impact Weapon 5 | . 3 14 Peak Build Rating 7 | 6 7 6 Average Rating 6 | 3 6 5 On Entrance 3 | . 6 4 Avg Prop Armor Cover (%) . | . . . Naked Turns . | . . . Heaviest Build 15 | 14 15 13 Greatest Support 40 | 40 40 32 Greatest Overweight (x) 4 | 3 4 . Average Overweight (x) . | . . . Largest Inventory Capacity 8 | 8 8 8 Average Capacity 7 | 7 8 8 Most Carried 8 | 8 7 5 Average Carried 5 | 5 6 3 Final Capacity 8 | 8 8 8 Final Carried 6 | 6 6 3 Class Distribution -------------------- 100% | Mutant Dominant Class ---------------- Mutant | -10/Materials Mutant | -10/Subcaves Resources | -11 -10 -10 ----------- Run | Yrd Mat Sub Matter Collected 559 | 205 354 . Remotely . | . . . Salvage Created 677 | . 677 . Parts 29 | . 29 . Haulers Intercepted . | . . . Recyclers Shooed 1 | . 1 . Parts Field Recycled . | . . . Retrieved Matter . | . . . Parts Self-Destructed . | . . . Prevented . | . . . Parts Restored . | . . . Kills | -11 -10 -10 ------- Run | Yrd Mat Sub Combat Hostiles Destroyed 17 | . 17 . Melee 1 | . 1 . Guns 12 | . 12 . Classes Destroyed 2 | . 2 . Watcher 1 | . 1 . Grunt 17 | . 17 . Best Kill Streak 6 | . 6 . Combat Bots Only 6 | . 6 . Max Kills in Single Turn 1 | . 1 . Gunslinging . | . . . Exploded . | . . . Melee 1 | . 1 . Uniques/NPCs Destroyed . | . . . Combat | -11 -10 -10 -------- Run | Yrd Mat Sub Hostile Shots Fired 111 | . 109 2 Missed 28 | . 28 . Hits 83 | . 81 2 Projectile 83 | . 81 2 Damage Taken 992 | . 949 43 Core 253 | . 210 43 Absorbed by Shields . | . . . Core Remaining (%) 100 | 100 . . Volleys Fired 43 | . 43 . Largest 2 | . 2 . Hottest 40 | . 40 . Shots Fired 83 | . 83 . Gun 83 | . 83 . Cannon . | . . . Launcher . | . . . Special . | . . . Kinetic 83 | . 83 . Thermal . | . . . Explosive . | . . . Electromagnetic . | . . . Robot Hit Streak 15 | . 15 . Robot Miss Streak 3 | . 3 . Penetration Max . | . . . Secondary Targets 3 | . 3 . Max Gunslinging Chain 1 | . 1 . Shots Hit Robots 67 | . 67 . Core Hits 26 | . 26 . Critical Kills . | . . . Critical Parts Destroyed 4 | . 4 . Critical Strikes 4 | . 4 . Smash 4 | . 4 . Melee Attacks 14 | . 14 . Impact 14 | . 14 . Slashing . | . . . Piercing . | . . . Sneak Attacks . | . . . Combat Hostiles . | . . . Follow-up Attacks 2 | . 2 . Damage Inflicted 1019 | . 1019 . Guns 748 | . 748 . Cannons . | . . . Explosions . | . . . Melee 271 | . 271 . Ramming . | . . . Kinetic 748 | . 748 . Thermal . | . . . Explosive . | . . . Electromagnetic . | . . . Impact 271 | . 271 . Slashing . | . . . Piercing . | . . . Highest Corruption . | . . . Average Corruption . | . . . Corruption Purged . | . . . Corruption Blocked . | . . . Overload Shots . | . . . Overflow Damage 123 | . 123 . Projectiles . | . . . Explosions . | . . . Melee 123 | . 123 . Knockbacks 2 | . 2 . Impact 2 | . 2 . Kinetic . | . . . Secondary . | . . . Self-Inflicted Damage . | . . . Shots . | . . . Rammed . | . . . Targets Rammed . | . . . Kicked . | . . . Crushed . | . . . Highest Temperature 10 | . 10 . Average Temperature 5 | . 5 . Received Heat Transfer 537 | . 525 12 Siege Activations . | . . . Martial Activations . | . . . Shielding Activations . | . . . Robots Disrupted . | . . . Combat Hostiles . | . . . Robots Corrupted 4 | . 4 . Combat Hostiles 4 | . 4 . Parts Fried 4 | . 4 . Impact Corruptions 6 | . 6 . Robots Melted . | . . . Combat Hostiles . | . . . Parts Melted . | . . . Heat Transferred . | . . . Parts Sabotaged . | . . . Parts Stolen . | . . . Parts Stripped . | . . . Power Chain Reactions . | . . . Alert | -11 -10 -10 ------- Run | Yrd Mat Sub Maximum Alert Level 1 | . 1 . Low Security (%) 86 | 100 84 . Level 1 13 | . 15 . Level 2 . | . . . Level 3 . | . . . Level 4 . | . . . Level 5 . | . . . High Security . | . . . Max Security . | . . . Peak Influence 240 | . 240 . Initial . | . . . Average 122 | . 138 . Influence Increases 492 | . 492 . Destroy 0b10 Robot/C 340 | . 340 . Destroy 0b10 Robot/NC 5 | . 5 . Destroy Leader 72 | . 72 . Lose Combat Pursuer 75 | . 75 . Influence Decreases 421 | . 278 143 Entered New Map 103 | . . 103 Time Decay 258 | . 218 40 Lost Part 60 | . 60 . Squads Dispatched 6 | . 6 . Investigation 4 | . 4 . Extermination . | . . . Reinforcement 2 | . 2 . Assault . | . . . Garrison . | . . . Intercept . | . . . Searches Triggered . | . . . Construction Impeded . | . . . Haulers Reinforced . | . . . Active Scanning Responses . | . . . Cargo Convoy Interrupts . | . . . Stealth | -11 -10 -10 --------- Run | Yrd Mat Sub Distress Signals 1 | . 1 . Communications Jammed . | . . . Distress Signals . | . . . Times Spotted 29 | . 28 1 Peak Tracking Total 10 | . 10 . Tactical Retreats 4 | . 4 . Traps | -11 -10 -10 ------- Run | Yrd Mat Sub Traps Triggered 2 | . 2 . Indirectly . | . . . Trap Hack Attempts . | . . . Triggered . | . . . Disarmed . | . . . Reprogrammed . | . . . Reused . | . . . Traps Extracted . | . . . Installed . | . . . Triggered . | . . . Machines | -11 -10 -10 ---------- Run | Yrd Mat Sub Machines Disabled . | . . . Max in Single Turn . | . . . Machines Repaired . | . . . Machines Dismantled . | . . . Machines Sabotaged . | . . . Overloaded Fab Kills . | . . . Hacking | -11 -10 -10 --------- Run | Yrd Mat Sub Machines Accessed 3 | . 3 . Terminals 2 | . 2 . Fabricators . | . . . Repair Stations . | . . . Recycling Units 1 | . 1 . Scanalyzers . | . . . Garrison Access . | . . . Total Hacks 7 | . 7 . Successful 3 | . 3 . Failed 4 | . 4 . Catastrophic . | . . . Database Lockouts . | . . . Manual . | . . . Terminals 4 | . 4 . Fabricators . | . . . Repair Stations . | . . . Recycling Units 3 | . 3 . Scanalyzers . | . . . Garrison Access . | . . . Terminal Hacks 1 | . 1 . Recall Reinforcements 1 | . 1 . Fabricator Hacks . | . . . Repair Station Hacks . | . . . Recycling Unit Hacks 2 | . 2 . Process 1 | . 1 . Report Inventory 1 | . 1 . Scanalyzer . | . . . Garrison Access Hacks . | . . . Unauthorized Hacks . | . . . Terminals . | . . . Fabricators . | . . . Repair Stations . | . . . Recycling Units . | . . . Scanalyzers . | . . . Garrison Access . | . . . Data Cores Recovered . | . . . Used . | . . . Hacking Detections 2 | . 2 . Full Trace Events 2 | . 2 . Feedback Events . | . . . Feedback Blocked . | . . . Robot Schematics Acquired . | . . . Robots Built . | . . . Authchips . | . . . Time . | . . . Total Robot Build Rating . | . . . Part Schematics Acquired . | . . . Parts Built . | . . . Authchips . | . . . Time . | . . . Total Part Build Rating . | . . . Part Studies Acquired . | . . . Parts Repaired . | . . . Time . | . . . Parts Recycled . | . . . Recycled Matter 191 | . 191 . Retrieved Matter . | . . . Retrieved Components . | . . . Parts Scanalyzed . | . . . Part Schematics Acquired . | . . . Parts Damaged . | . . . Bothacking | -11 -10 -10 ------------ Run | Yrd Mat Sub Used RIF Installer . | . . . Robots Hacked . | . . . Non-combat . | . . . Combat . | . . . Robot Hacks Applied . | . . . Relay Couplers Released . | . . . Fabnet Peak Effective % . | . . . Robots Rewired . | . . . Allies Hacked . | . . . Hacks Repelled . | . . . Allies | -11 -10 -10 -------- Run | Yrd Mat Sub Total Allies . | . . . Largest Group . | . . . Highest-Rated Group . | . . . Highest-Rated Ally . | . . . Total Orders . | . . . Ally Attacks . | . . . Total Damage . | . . . Kills . | . . . Allies Corrupted . | . . . Allies Melted . | . . . Intel | -11 -10 -10 ------- Run | Yrd Mat Sub Active Infowar (turns) . | . . . Robot Analysis Total . | . . . Derelict Logs Recovered 1 | . . 1 Drone Launches . | . . . Drone Recoveries . | . . . Exploration | -11 -10 -10 ------------- Run | Yrd Mat Sub Turns Passed 679 | 68 518 93 Spaces Moved 393 | 39 264 90 Core 21 | 20 1 . Treads 60 | 19 41 . Legs 222 | . 222 . Wheels 90 | . . 90 Hover . | . . . Flight . | . . . Fastest Speed 50 | 50 120 100 Average Speed 125 | 134 132 100 Slowest Speed 250 | 200 250 100 Overloaded Moves . | . . . Propulsion Burnouts . | . . . Robots Hopped . | . . . Potential Cave-ins . | . . . Cave-ins Triggered . | . . . Exploration Rate (%) 20 | 4 47 11 Regions Visited 2 Branch Regions 1 Pre-discovered Areas . | . . . Known Exits Taken . | . . . Unknown Exits Taken 2 | 1 1 . Scrap Searched . | . . . Spaces Dug . | . . . Terrain Destroyed . | . . . Melee . | . . . Projectile . | . . . AOE . | . . . Terrain Rammed . | . . . Walls Destroyed . | . . . Machines Disabled . | . . . Actions | -11 -10 -10 --------- Run | Yrd Mat Sub Total 476 | 53 330 93 Wait . | . . . Move 391 | 38 263 90 Hop . | . . . Pick Up 11 | 9 2 . Fast Attach 5 | 3 2 . Attach 10 | 3 5 2 Detach 3 | . 3 . Swap . | . . . Drop 1 | . . 1 Fire 43 | . 43 . Melee 12 | . 12 . Ram . | . . . Kick . | . . . Crush . | . . . Escape Stasis . | . . . Rewire . | . . . Trap . | . . . Miscellaneous . | . . . Route ------- -11/Scrapyard -10/Materials (discovered 2 exits: [*Mat] / [*Sub]) -10/Subcaves History --------- Turn | Location | Event 2 | -11/Scrapyard | Met Revision 17 17 | -11/Scrapyard | Discovered new exit (range 16) 69 | -11/Scrapyard | Entered Materials 309 | -10/Materials | Build established: Mutant 339 | -10/Materials | Discovered new exit (range 11) 488 | -10/Materials | Core integrity fell below 50% 551 | -10/Materials | Discovered new exit (range 15) 574 | -10/Materials | Core integrity fell below 20% 587 | -10/Materials | Entered Subcaves 603 | -10/Subcaves | Learned Materials stockpile data 680 | -10/Subcaves | Destroyed by JT-Y6X(R) with Subdweller Laser Last Messages --------------- Acquired 9 matter. EXIT=FOUND T-07 Excavator is excavating. U-05 Engineer lays Concrete. T-07 Excavator is excavating. U-05 Engineer lays Concrete. U-05 Engineer builds a Wall. T-07 Excavator is excavating. U-05 Engineer lays Concrete. U-05 Engineer builds a Wall. T-07 Excavator is excavating. Aluminum Leg destroyed. U-05 Engineer lays Concrete. LOCATION=UNKNOWN AMBIENT_HEAT=-10 GOAL=ESCAPE Dropped Lgt. Treads. Subatomizers dissect the Lgt. Treads. Acquired derelict log, extracted data. Data stored: Materials stockpile data. Map ----- +----------------------------------------------------+ | ?????????????????????????????????????# ####????? | | ?????????????????????????????????????## #??#???? | | ??????????????????????????????????????# ## # # | | ??????????????????????????????????????# | | ??????????????????????????????????????# ## | | ?????????????????????????????????????## #??## | | ?????????????????????????????????????# #?????? | | ?????????????????????????????????????## #??????? | | ?????????????????????????????????????# ######?? | | ?????????????????????????????????????## # ### | | ?????????????????????????#????????????# | | ????????????????????????? ??????????### | | ?????????????????????????# ???????? ### # | | ?????????????????????????? #?????##% ######### | | ?????????????????????????? "##??## ???????### | | ????????????????#?????????? ### ??????????## | | ???????????????## ?????????? ????????##### | | ???????????????# ??????##??# #???###### ## | | ???????????????# ??????# ## #?### # | | ???????????????# ????? ### | | ????????????????# ???? ## | | ????????????????# ?????????# # | | ????????????????# #????????# ## | | ???????????????## ###????## #? | | ??????????????## ###### ## # | | ??????????????# @ ## ### ## | | ????????? R ## #? | | ????????? % ## % | | ????????? # ?##### | | ?????????????# ## ??????# ## # | | ?????????????# ??## ??????# ## ## | | ??????????????????# ?????? ## ####? | | ??????????????????# ????? #### ##???? | | ??????????????????#?????## ##??######????? | | ?????????????????????????## ###?????????????? | | ??????????????????????????# ##???????????????? | | ?????????????????????????? ##????????????????? | | ??????????????????????????## ##?????????????????? | | ???????????????????????????####??????????????????? | | ?????????????????????????????????????????????????? | | ?????????????????????????????????????????????????? | | ?????????????????????????????????????????????????? | | ?????????????????????????????????????????????????? | | ?????????????????????????????????????????????????? | | ?????????????????????????????????????????????????? | | ?????????????????????????????????????????????????? | | ?????????????????????????????????????????????????? | | ?????????????????????????????????????????????????? | | ?????????????????????????????????????????????????? | | ?????????????????????????????????????????????????? | +----------------------------------------------------+ Best States ------------- Heat Dissipation 35 Energy Generation 10 Energy Capacity 250 Matter Stores 300 Matter Capacity 300 Sight Range 16 Terrain Scan Density 10 Evasion (%) 55 Recoil Reduction 2 Item Schematics ----------------- None Robot Schematics ------------------ None Fabricated ------------ Nothing Repaired ---------- Nothing Studied --------- None Alien Tech Used ----------------- None Achievements -------------- GoHome() You Again Challenges ------------ None Game ------ Seed OmegaInterceptInverter Manual? 0 Play Time 00:11:01 Cumulative 22.7 hours Start 2026.08.19 @ 18:41:46 End 2026.08.19 @ 18:59:50 Sessions 1 Manual Loads 0 Difficulty Rogue Special Mode None Game No. 42 Rogue 42 Adventurer 0 Explorer 0 Win Type - Total 0 Types 0/0/0/0/0/0/0/0/0/0 Lore% 15 Gallery% 21 Achievement% 13 Wizard Run 0 Options --------- Layout 1 ASCII 0 Keyboard 0 Movement Arrows Keybinds 0 Fullscreen 1 Font 24/Smallcaps Map View 50x35 Zoom Use 0% Tactical HUD 0 Map Filters NONE Filters NONE Steam 1 RUN: c1a61a1f-d4ba-433e-b764-e6de4a4ebbc9